fUST/lending_fUST_20250810
["ID","MTS","AMOUNT","RATE_DAILY","PERIOD"]
[378217107,1754789438267,-175.40245456,0.00021163,2]
[378217108,1754789438277,-300.0,0.00021202,2]
[378217109,1754789438286,-460.0,0.00021203,2]
[378217110,1754789438296,-460.0,0.00021203,2]
[378217111,1754789438305,-460.0,0.00021203,2]
[378217112,1754789438315,-460.0,0.00021203,2]
[378217113,1754789438327,-460.0,0.00021203,2]
[378217114,1754789438336,-460.0,0.00021203,2]
[378217115,1754789438345,-460.0,0.00021203,2]
[378217116,1754789438355,-460.0,0.00021203,2]
[378217117,1754789438364,-460.0,0.00021203,2]
[378217118,1754789438373,-460.0,0.00021203,2]
[378217119,1754789438382,-460.0,0.00021203,2]
[378217120,1754789438391,-547.45,0.00021203,2]
[378217121,1754789438400,-460.0,0.00021203,2]
[378217122,1754789438410,-460.0,0.00021203,2]
[378217123,1754789438420,-460.0,0.00021203,2]
[378217124,1754789438429,-460.0,0.00021203,2]
[378217126,1754789438439,-460.0,0.00021203,2]
[378217127,1754789438448,-460.0,0.00021203,2]
[378217128,1754789438457,-460.0,0.00021203,2]
[378217129,1754789438467,-460.0,0.00021203,2]
[378217130,1754789438475,-460.0,0.00021203,2]
[378217131,1754789438485,-604.19,0.00021203,2]
[378217132,1754789438494,-460.0,0.00021203,2]
[378217133,1754789438504,-460.0,0.00021203,2]
[378217134,1754789438513,-460.0,0.00021203,2]
[378217135,1754789438523,-460.0,0.00021203,2]
[378217136,1754789438533,-460.0,0.00021203,2]
[378217137,1754789438543,-460.0,0.00021203,2]
[378217138,1754789438552,-359.74788181,0.00021203,2]
[378217139,1754789438564,-100.25211819,0.00021203,2]
[378217140,1754789438573,-460.0,0.00021203,2]
[378217141,1754789438582,-460.0,0.00021203,2]
[378217142,1754789438591,-305.37,0.00021203,2]
[378217143,1754789438600,-460.0,0.00021203,2]
[378217144,1754789438610,-460.0,0.00021203,2]
[378217145,1754789438619,-470.11573315,0.00021203,2]
[378217146,1754789438628,-477.73199758,0.00021203,2]
[378217147,1754789438638,-460.0,0.00021203,2]
[378217148,1754789438647,-460.0,0.00021203,2]
[378217149,1754789438656,-460.0,0.00021203,2]
[378217150,1754789438665,-467.14823787,0.00021203,2]
[378217151,1754789438674,-460.0,0.00021203,2]
[378217152,1754789438683,-474.9985636,0.00021203,2]
[378217153,1754789438694,-238.99146826,0.00021203,2]
[378217154,1754789438703,-205.12868769,0.00021263,2]
[378217155,1754789438712,-460.0,0.00021363,2]
[378217156,1754789438722,-460.0,0.00021363,2]
[378217157,1754789438731,-460.0,0.00021364,2]
[378217158,1754789438740,-460.0,0.00021364,2]
[378217159,1754789438750,-604.4,0.00021364,2]
[378217160,1754789438759,-518.08,0.00021364,2]
[378217161,1754789438768,-460.0,0.00021364,2]
[378217162,1754789438778,-460.0,0.00021364,2]
[378217163,1754789438787,-460.0,0.00021364,2]
[378217164,1754789438797,-460.0,0.00021476,2]
[378217165,1754789438807,-460.0,0.00021476,2]
[378217166,1754789438816,-460.0,0.00021476,2]
[378217167,1754789438826,-166.81,0.00021476,2]
[378217168,1754789438835,-161.64,0.00021476,2]
[378217169,1754789438844,-313.4,0.00021476,2]
[378217170,1754789438854,-460.0,0.00021476,2]
[378217171,1754789438863,-460.0,0.00021476,2]
[378217172,1754789438873,-460.0,0.00021476,2]
[378217173,1754789438882,-460.0,0.00021476,2]
[378217174,1754789438891,-460.0,0.00021476,2]
[378217175,1754789438900,-460.0,0.00021476,2]
[378217176,1754789438909,-460.0,0.00021476,2]
[378217177,1754789438918,-460.0,0.00021476,2]
[378217178,1754789438927,-460.0,0.00021476,2]
[378217179,1754789438937,-460.0,0.00021476,2]
[378217180,1754789438946,-460.0,0.00021476,2]
[378217181,1754789438956,-538.74933906,0.00021476,2]
[378217182,1754789438965,-471.33325188,0.00021476,2]
[378217183,1754789438975,-591.55805154,0.00021476,2]
[378217184,1754789438984,-460.0,0.00021637,2]
[378217185,1754789438993,-460.0,0.00021637,2]
[378217186,1754789439003,-485.8,0.00021638,2]
[378217187,1754789439013,-460.0,0.00021638,2]
[378217188,1754789439023,-604.4,0.00021638,2]
[378217189,1754789439032,-460.0,0.00021638,2]
[378217190,1754789439042,-460.0,0.00021638,2]
[378217191,1754789439051,-460.0,0.00021638,2]
[378217192,1754789439060,-561.68203882,0.00021655,2]
[378217193,1754789439070,-460.0,0.0002175,2]
[378217194,1754789439079,-460.0,0.0002175,2]
[378217195,1754789439089,-460.0,0.0002175,2]
[378217196,1754789439098,-460.0,0.0002175,2]
[378217197,1754789439107,-270.34,0.0002175,2]
[378217198,1754789439116,-404.86,0.0002175,2]
[378217199,1754789439126,-460.0,0.0002175,2]
[378217200,1754789439135,-188.1,0.0002175,2]
[378217201,1754789439144,-460.0,0.0002175,2]
[378217202,1754789439155,-460.0,0.0002175,2]
[378217203,1754789439165,-487.85175765,0.0002175,2]
[378217204,1754789439174,-481.62514578,0.00021911,2]
[378217205,1754789439184,-488.74,0.00021912,2]
[378217206,1754789439194,-604.4,0.00021912,2]
[378217207,1754789439203,-460.0,0.00021912,2]
[378217208,1754789439213,-460.0,0.00021912,2]
[378217209,1754789439223,-962.89288047,0.00022,2]
[378217210,1754789439232,-546.22,0.00022,2]
[378217211,1754789439242,-317.72,0.00022024,2]
[378217212,1754789439252,-460.0,0.00022024,2]
[378217213,1754789439262,-460.0,0.00022024,2]
[378217214,1754789439272,-460.0,0.00022024,2]
[378217215,1754789439281,-218.58,0.00022024,2]
[378217216,1754789439291,-229.6,0.00022024,2]
[378217217,1754789439301,-460.0,0.00022024,2]
[378217218,1754789439310,-500.0,0.0002211,2]
[378217219,1754789439323,-604.4,0.00022186,2]
[378217220,1754789439332,-246.92,0.00022186,2]
[378217221,1754789439342,-460.0,0.00022186,2]
[378217222,1754789439351,-500.0,0.00022194,2]
[378217223,1754789439362,-151.0,0.00022202,2]
[378217224,1754789439371,-151.0,0.00022202,2]
[378217225,1754789439380,-151.0,0.00022202,2]
[378217226,1754789439390,-151.0,0.00022202,2]
[378217227,1754789439400,-151.0,0.00022202,2]
[378217228,1754789439410,-155.86781768,0.00022202,2]
[378217229,1754789439419,-276.72274851,0.00022202,2]
[378217230,1754789439428,-151.0,0.00022202,2]
[378217231,1754789439438,-151.0,0.00022202,2]
[378217232,1754789439447,-151.0,0.00022202,2]
[378217233,1754789439456,-200.0,0.00022262,15]
[378217234,1754789439465,-300.0,0.00022262,15]
[378217235,1754789439475,-460.0,0.00022298,2]
[378217236,1754789439484,-460.0,0.00022298,2]
[378217237,1754789439494,-231.28,0.00022298,2]
[378217238,1754789439505,-460.0,0.00022298,2]
[378217239,1754789439514,-2123.0,0.00022395,2]
[378217240,1754789439524,-460.0,0.0002243,2]
[378217241,1754789439533,-460.0,0.0002243,2]
[378217242,1754789439542,-460.0,0.0002243,2]
[378217243,1754789439553,-460.0,0.0002243,2]
[378217244,1754789439563,-520.60904287,0.0002243,2]
[378217247,1754789439572,-460.0,0.0002243,2]
[378217248,1754789439581,-460.0,0.0002243,2]
[378217249,1754789439591,-460.0,0.0002243,2]
[378217250,1754789439601,-460.0,0.0002243,2]
[378217252,1754789439610,-460.0,0.0002243,2]
[378217253,1754789439620,-153.0,0.00022438,2]
[378217254,1754789439630,-604.4,0.0002246,2]
[378217255,1754789439639,-460.0,0.0002246,2]
[378217256,1754789439647,-500.0,0.00022556,2]
[378217257,1754789439661,-198.0,0.00022556,2]
[378217258,1754789439671,-198.0,0.00022556,2]
[378217259,1754789439680,-198.0,0.00022556,2]
[378217260,1754789439691,-198.0,0.00022556,2]
[378217262,1754789439700,-151.0,0.00022556,2]
[378217263,1754789439710,-460.0,0.00022572,2]
[378217265,1754789439719,-460.0,0.00022572,2]
[378217266,1754789439729,-460.0,0.00022572,2]
[378217267,1754789439738,-994.8005216,0.0002263,2]
[378217268,1754789439748,-1000.0,0.00022657,2]
[378217269,1754789439757,-460.0,0.00022704,2]
[378217270,1754789439767,-460.0,0.00022704,2]
[378217271,1754789439777,-460.0,0.00022704,2]
[378217272,1754789439787,-460.0,0.00022704,2]
[378217273,1754789439796,-460.0,0.00022704,2]
[378217274,1754789439806,-460.0,0.00022704,2]
[378217275,1754789439815,-460.0,0.00022704,2]
[378217276,1754789439824,-460.0,0.00022704,2]
[378217277,1754789439834,-604.4,0.00022734,2]
[378217278,1754789439844,-460.0,0.00022734,2]
[378217279,1754789439853,-915.22304013,0.00022742,2]
[378217280,1754789439863,-825.29,0.00022769,10]
[378217281,1754789439872,-160.0,0.00022779,2]
[378217282,1754789439882,-215.40758176,0.00022779,2]
[378217283,1754789439892,-231.92402426,0.00022779,2]
[378217284,1754789439901,-216.61183532,0.00022779,2]
[378217285,1754789439911,-461.55179734,0.00022779,2]
[378217286,1754789439921,-842.95011917,0.00022779,2]
[378217288,1754789439931,-160.0,0.00022779,2]
[378217290,1754789439941,-12666.14847857,0.00022779,2]
[378217292,1754789439950,-2025.01548384,0.00022837,2]
[378217294,1754789439959,-460.0,0.00022846,2]
[378217296,1754789439968,-460.0,0.00022846,2]
[378217298,1754789439977,-460.0,0.00022846,2]
[378217300,1754789439987,-151.0,0.00022909,7]
[378217302,1754789439996,-2441.30109438,0.0002291,2]
[378217304,1754789440006,-4470.0,0.00022911,2]
[378217306,1754789440015,-787.38330604,0.00022937,2]
[378217309,1754789440258,-151.0,0.00022202,2]
[378217310,1754789440267,-128.0616457,0.00022202,2]
[378217322,1754789443005,224.797769,0.00013699,2]
[378217333,1754789443560,224.797769,0.00020187,2]
[378217334,1754789446119,-460.0,0.00021203,2]
[378217335,1754789446129,-159.99152765,0.00021476,2]
[378217336,1754789446226,-300.00847235,0.00021476,2]
[378217338,1754789446235,-460.0,0.0002175,2]
[378217339,1754789446243,-460.0,0.00022024,2]
[378217340,1754789446252,-22.9383543,0.00022202,2]
[378217341,1754789446262,-151.0,0.00022202,2]
[378217342,1754789446270,-151.0,0.00022202,2]
[378217343,1754789446279,-151.0,0.00022202,2]
[378217344,1754789446288,-151.0,0.00022202,2]
[378217345,1754789446297,-151.0,0.00022202,2]
[378217346,1754789446306,-151.0,0.00022202,2]
[378217347,1754789446315,-151.0,0.00022202,2]
[378217348,1754789446328,-151.0,0.00022202,2]
[378217350,1754789446337,-151.0,0.00022202,2]
[378217352,1754789446347,-460.0,0.00022298,2]
[378217353,1754789446356,-460.0,0.00022572,2]
[378217354,1754789446365,-598.43683211,0.00022846,2]
[378217355,1754789446374,-1335.61669396,0.00022937,2]
[378217356,1754789446384,-947.0,0.00022959,2]
[378217357,1754789446394,-160.0,0.00022971,2]
[378217358,1754789446403,-460.0,0.00022978,2]
[378217359,1754789446412,-187.76,0.00022978,2]
[378217360,1754789446421,-460.0,0.00022978,2]
[378217361,1754789446430,-460.0,0.00022978,2]
[378217362,1754789446440,-460.0,0.00022978,2]
[378217363,1754789446449,-160.0,0.00023,2]
[378217364,1754789446458,-604.4,0.00023008,2]
[378217365,1754789446467,-460.0,0.00023008,2]
[378217366,1754789446476,-420.0,0.00023058,2]
[378217367,1754789446485,-947.0,0.00023091,2]
[378217368,1754789446494,-1000.0,0.00023104,2]
[378217369,1754789446503,-4470.0,0.00023115,2]
[378217370,1754789446512,-460.0,0.0002312,2]
[378217371,1754789446522,-460.0,0.0002312,2]
[378217372,1754789446531,-460.0,0.0002312,2]
[378217373,1754789446540,-947.0,0.00023176,2]
[378217374,1754789446549,-4470.0,0.00023183,2]
[378217375,1754789446558,-546.22,0.00023192,2]
[378217376,1754789446567,-1330.25067801,0.00023205,2]
[378217377,1754789446577,-947.0,0.0002321,2]
[378217378,1754789446586,-460.0,0.00023252,2]
[378217379,1754789446595,-162.86,0.00023252,2]
[378217380,1754789446604,-286.06,0.00023252,2]
[378217381,1754789446614,-460.0,0.00023252,2]
[378217382,1754789446623,-4470.0,0.00023281,2]
[378217383,1754789446632,-604.4,0.00023282,2]
[378217384,1754789446641,-460.0,0.00023282,2]
[378217385,1754789446651,-460.0,0.00023394,2]
[378217386,1754789446660,-460.0,0.00023394,2]
[378217387,1754789446669,-460.0,0.00023394,2]
[378217388,1754789446678,-561.68203882,0.00023409,2]
[378217389,1754789446688,-431.1578537,0.00023435,2]
[378217390,1754789446698,-431.1578537,0.00023435,2]
[378217391,1754789446707,-431.1578537,0.00023435,2]
[378217392,1754789446716,-431.1578537,0.00023435,2]
[378217393,1754789446726,-431.1578537,0.00023435,2]
[378217394,1754789446735,-431.1578537,0.00023435,2]
[378217395,1754789446744,-431.1578537,0.00023435,2]
[378217396,1754789446754,-330.3517972,0.00023435,2]
[378217397,1754789446763,-2104.73,0.00023457,2]
[378217398,1754789446772,-445.202,0.00023469,3]
[378217399,1754789446782,-1802.0,0.000235,3]
[378217400,1754789446791,-260.0,0.00023519,2]
[378217401,1754789446800,-460.0,0.00023526,2]
[378217402,1754789446809,-329.1,0.00023526,2]
[378217403,1754789446819,-168.0,0.00023555,2]
[378217404,1754789446828,-604.4,0.00023556,2]
[378217405,1754789446837,-460.0,0.00023556,2]
[378217406,1754789446846,-151.0,0.00023571,2]
[378217407,1754789446858,-5888.0,0.00023607,2]
[378217408,1754789446867,-1528.46855899,0.00023651,2]
[378217409,1754789446876,-460.0,0.00023668,2]
[378217410,1754789446885,-460.0,0.00023668,2]
[378217411,1754789446895,-460.0,0.00023668,2]
[378217412,1754789446905,-947.0,0.00023744,2]
[378217413,1754789446914,-200.0,0.00023771,29]
[378217414,1754789446923,-206.94,0.000238,2]
[378217415,1754789446932,-604.4,0.0002383,2]
[378217416,1754789446942,-279.10952162,0.0002383,2]
[378217417,1754789446951,-460.0,0.00023942,2]
[378217418,1754789446960,-460.0,0.00023942,2]
[378217419,1754789446969,-460.0,0.00023942,2]
[378217420,1754789446978,-245.91369161,0.00024043,2]
[378217421,1754789446988,-549.9092643,0.00024043,2]
[378217422,1754789447001,-549.9092643,0.00024043,2]
[378217423,1754789447013,-549.9092643,0.00024043,2]
[378217424,1754789447023,-549.9092643,0.00024043,2]
[378217425,1754789447033,-549.9092643,0.00024043,2]
[378217426,1754789447043,-549.9092643,0.00024043,2]
[378217427,1754789447053,-549.9092643,0.00024043,2]
[378217428,1754789447063,-549.9092643,0.00024043,2]
[378217429,1754789447072,-549.9092643,0.00024043,2]
[378217430,1754789447081,-549.9092643,0.00024043,2]
[378217431,1754789447091,-549.9092643,0.00024043,2]
[378217432,1754789447101,-549.9092643,0.00024043,2]
[378217433,1754789447112,-549.9092643,0.00024043,2]
[378217434,1754789447121,-549.9092643,0.00024043,2]
[378217435,1754789447131,-549.9092643,0.00024043,2]
[378217436,1754789447141,-549.9092643,0.00024043,2]
[378217437,1754789447150,-549.9092643,0.00024043,2]
[378217438,1754789447159,-549.9092643,0.00024043,2]
[378217439,1754789447169,-549.9092643,0.00024043,2]
[378217440,1754789447178,-549.9092643,0.00024043,2]
[378217441,1754789447187,-1101.0,0.00024044,2]
[378217442,1754789447198,-360.0,0.00024067,2]
[378217443,1754789447206,-994.8005216,0.00024097,2]
[378217444,1754789447215,-604.4,0.00024104,2]
[378217445,1754789447225,-460.0,0.00024216,2]
[378217446,1754789447234,-460.0,0.00024216,2]
[378217447,1754789447244,-460.0,0.00024216,2]
[378217448,1754789447257,-1101.0,0.00024352,2]
[378217449,1754789447269,-1101.0,0.00024367,2]
[378217450,1754789447278,-151.0,0.00024378,7]
[378217451,1754789447287,-441.882672,0.00024378,7]
[378217452,1754789447296,-441.882672,0.00024378,7]
[378217453,1754789447305,-604.4,0.00024378,2]
[378217454,1754789447314,-546.22,0.00024383,2]
[378217455,1754789447327,-1101.0,0.00024396,2]
[378217456,1754789447336,-200.0,0.00024433,15]
[378217457,1754789447345,-200.0,0.00024433,15]
[378217458,1754789447354,-300.0,0.00024433,15]
[378217459,1754789447364,-500.0,0.00024473,2]
[378217460,1754789447374,-500.0,0.00024473,2]
[378217461,1754789447382,-500.0,0.00024473,2]
[378217462,1754789447392,-460.0,0.0002449,2]
[378217463,1754789447401,-460.0,0.0002449,2]
[378217464,1754789447410,-410.35990899,0.0002449,2]
[378217465,1754789447419,-151.0,0.00024499,7]
[378217466,1754789447428,-19793.28639165,0.000245,2]
[378217468,1754789469417,460.0,0.0002109,2]
[378217469,1754789518014,460.0,0.0002109,2]
[378217470,1754789532414,269.94019279,0.0002109,2]
[378217472,1754789585249,531.00227623,0.000199,2]
[378217473,1754789588065,460.0,0.0002109,2]
[378217474,1754789617500,212.22574139,0.0002109,2]
[378217475,1754789679722,359.3163984,0.00031529,30]
[378217477,1754789690692,1914.0,0.00031529,30]
[378217478,1754789779256,518.39688577,0.000199,2]
[378217479,1754789833899,160.5897142,0.0002109,2]
[378217480,1754789921946,203.07723695,0.000222,69]
[378217482,1754789973513,505.50339643,0.000199,2]
[378217496,1754790061730,39252.53643854,0.00028,30]
[378217497,1754790085027,445.33,0.00028,30]
[378217498,1754790104841,460.0,0.0002109,2]
[378217499,1754790126242,469.63479615,0.0002109,2]
[378217500,1754790169963,657.13228355,0.000199,2]
[378217501,1754790225741,235.583651,0.00031527,120]
[378217502,1754790228275,1838.4236864,0.00031527,120]
[378217504,1754790293192,164.0975476,0.00027397,120]
[378217505,1754790303111,300.0,0.00023,30]
[378217507,1754790345759,635.22787405,0.000199,2]
[378217509,1754790428616,218.810274,0.00013699,2]
[378217510,1754790428846,218.810274,0.00020187,2]
[378217513,1754790527906,614.05361163,0.000199,2]
[378217521,1754790618930,160.84875123,0.00019,2]
[378217564,1754790632326,-556.83700647,0.00021103,2]
[378217576,1754790632431,-68.56556504,0.00021103,2]
[378217578,1754790632440,-257.4308747,0.00021199,2]
[378217579,1754790632450,-460.0,0.00021199,2]
[378217580,1754790632460,-460.0,0.00021199,2]
[378217581,1754790632470,-300.0,0.00021199,2]
[378217582,1754790632479,-370.36419604,0.00021199,2]
[378217583,1754790632488,-463.92673994,0.00021199,2]
[378217584,1754790632497,-15771.90010348,0.000212,2]
[378217619,1754790638183,-661.00875319,0.000212,2]
[378218188,1754790643841,-88798.09114333,0.000212,2]
[378218190,1754790643854,-364.76217394,0.00021203,2]
[378218192,1754790643864,-265.99432378,0.00021203,2]
[378218194,1754790643873,-460.0,0.00021203,2]
[378218196,1754790643883,-460.0,0.00021203,2]
[378218198,1754790643892,-462.50468722,0.00021203,2]
[378218200,1754790643902,-182.82,0.00021203,2]
[378218202,1754790643911,-253.60876122,0.00021203,2]
[378218204,1754790643922,-467.18536581,0.00021203,2]
[378218206,1754790643931,-460.0,0.00021203,2]
[378218209,1754790643941,-468.45034174,0.00021203,2]
[378218211,1754790643951,-460.0,0.00021203,2]
[378218213,1754790643960,-460.0,0.00021203,2]
[378218215,1754790643970,-466.31933011,0.00021203,2]
[378218217,1754790643980,-466.4809023,0.00021203,2]
[378218219,1754790643989,-460.0,0.00021203,2]
[378218221,1754790643998,-476.11136231,0.00021203,2]
[378218222,1754790644007,-463.53736763,0.00021203,2]
[378218225,1754790644016,-607.0454063,0.00021203,2]
[378218227,1754790644026,-468.04494531,0.00021203,2]
[378218229,1754790644035,-460.0,0.00021203,2]
[378218231,1754790644044,-461.30504971,0.00021203,2]
[378218232,1754790644055,-155.60544108,0.00021203,2]
[378219942,1754790700949,593.58515788,0.000199,2]
[378219944,1754790853239,24900.0,0.00020751,2]
[378219945,1754790878788,573.79898597,0.000199,2]
[378219947,1754791058789,554.67235294,0.000199,2]
[378219948,1754791229386,536.18327476,0.000199,2]
[378219949,1754791337617,2188.1964867,0.000207,2]
[378219951,1754791404641,523.21266881,0.000199,2]
[378219953,1754791570992,205.009265,0.00013699,2]
[378219954,1754791571239,205.009265,0.00020187,2]
[378219956,1754791584814,545.1947884,0.000199,2]
[378219959,1754791756741,527.02162869,0.000199,2]
[378219983,1754791832544,-300.0,0.00021198,2]
[378219984,1754791832553,-293.98045132,0.00021199,2]
[378219985,1754791832563,-467.3349121,0.00021199,2]
[378219986,1754791832572,-305.41363698,0.00021199,2]
[378219988,1754791832582,-472.64938104,0.00021199,2]
[378219989,1754791832591,-480.11335249,0.00021199,2]
[378219990,1754791832601,-466.47528646,0.00021199,2]
[378219991,1754791832610,-462.8568414,0.00021199,2]
[378219992,1754791832620,-191.85443385,0.00021199,2]
[378220035,1754791838342,-274.38278819,0.00021199,2]
[378220037,1754791838351,-464.76500623,0.00021199,2]
[378220039,1754791838361,-409.8522063,0.00021199,2]
[378220041,1754791838373,-56.99715381,0.00021199,2]
[378220043,1754791838384,-335.16556592,0.00021199,2]
[378220045,1754791838394,-466.50321364,0.00021199,2]
[378220047,1754791838403,-104.10901387,0.00021199,2]
[378220052,1754791838447,-361.41860233,0.00021199,2]
[378220054,1754791838456,-453.74488151,0.00021199,2]
[378220056,1754791838468,-16.3510365,0.00021199,2]
[378220058,1754791838478,-360.98063581,0.00021199,2]
[378220060,1754791838490,-105.11122553,0.00021199,2]
[378220062,1754791838499,-466.78762951,0.00021199,2]
[378220064,1754791838508,-463.52264779,0.00021199,2]
[378220066,1754791838518,-310.84180018,0.00021199,2]
[378220068,1754791838528,-464.02343351,0.00021199,2]
[378220070,1754791838537,-466.23473611,0.00021199,2]
[378220072,1754791838547,-87.71149798,0.00021199,2]
[378220074,1754791838558,-374.27896685,0.00021199,2]
[378220076,1754791838567,-153.80401804,0.00021199,2]
[378220160,1754791841370,24900.0,0.0002079,2]
[378220161,1754791842614,157.060137,0.00027699,30]
[378220176,1754791846403,-311.46045729,0.00021199,2]
[378220177,1754791846413,-476.37734836,0.00021199,2]
[378220178,1754791846422,-464.84421297,0.00021199,2]
[378220179,1754791846432,-468.67535219,0.00021199,2]
[378220180,1754791846442,-464.89531354,0.00021199,2]
[378220181,1754791846451,-469.34112845,0.00021199,2]
[378220182,1754791846461,-466.32491997,0.00021199,2]
[378220183,1754791846470,-460.0,0.00021199,2]
[378220184,1754791846479,-465.63616863,0.00021199,2]
[378220185,1754791846489,-470.54042971,0.00021199,2]
[378220186,1754791846498,-462.41749444,0.00021199,2]
[378220187,1754791846508,-473.38609007,0.00021199,2]
[378220188,1754791846517,-179.7997319,0.00021199,2]
[378220189,1754791846527,-460.0,0.00021199,2]
[378220190,1754791846537,-468.66451973,0.00021199,2]
[378220191,1754791846546,-460.0,0.00021199,2]
[378220192,1754791846555,-607.76624629,0.00021199,2]
[378220193,1754791846565,-471.14357429,0.00021199,2]
[378220194,1754791846575,-463.84587168,0.00021199,2]
[378220195,1754791846584,-20.08114049,0.00021199,2]
[378220201,1754791903690,151.824799,0.00027703,30]
[378220202,1754791927615,509.45424098,0.000199,2]
[378220209,1754792105595,492.47243287,0.000199,2]
[378220213,1754792184614,290.4674611,0.00031521,120]
[378220214,1754792264510,151.824799,0.00027703,30]
[378220215,1754792276530,476.05668533,0.000199,2]
[378220217,1754792424643,155.0,0.000301,120]
[378220218,1754792425528,155.0,0.000301,120]
[378220219,1754792452143,460.18812893,0.000199,2]
[378220220,1754792476824,155.0,0.00028,30]
[378220221,1754792477678,155.0,0.00028,30]
[378220222,1754792483690,155.0,0.00028,30]
[378220223,1754792503645,151.824799,0.00027699,30]
[378220224,1754792515329,155.0,0.00021,2]
[378220225,1754792522046,155.0,0.00021,2]
[378220226,1754792522760,155.0,0.00021,2]
[378220227,1754792528002,155.0,0.00021,3]
[378220228,1754792529139,155.0,0.00021,3]
[378220229,1754792529770,155.0,0.00021,3]
[378220232,1754792571166,155.0,0.00021,3]
[378220234,1754792626249,444.8485247,0.000199,2]
[378220237,1754792677850,250.0,0.00020958,2]
[378220239,1754792763894,24900.0,0.00020599,2]
[378220240,1754792772596,192.588357,0.00013699,2]
[378220241,1754792773034,192.588357,0.00020187,2]
[378220245,1754792799866,430.02024064,0.000199,2]
[378220250,1754792845442,153.34587183,0.00031524,60]
[378220255,1754792886188,1837.19059523,0.00031524,60]
[378220257,1754792890158,782.85415136,0.00031524,32]
[378220259,1754792917804,610.41969549,0.00031524,120]
[378220261,1754792921880,3394.01886756,0.00031524,60]
[378220262,1754792922668,254.86454857,0.00031524,120]
[378220263,1754792922862,1081.25050872,0.00031524,120]
[378220264,1754792924027,1105.68756475,0.00031524,120]
[378220268,1754792982397,415.68623258,0.000199,2]
[378220284,1754793032637,-714.70369681,0.0002118,2]
[378220295,1754793032692,-285.29630319,0.0002118,2]
[378220298,1754793032702,-726.0,0.00021198,2]
[378220302,1754793032711,-466.70321432,0.00021199,2]
[378220305,1754793032721,-453.71963572,0.00021199,2]
[378220306,1754793032733,-468.68242184,0.00021199,2]
[378220309,1754793032743,-251.93246919,0.00021201,2]
[378220311,1754793032753,-477.1782585,0.00021201,2]
[378220313,1754793032762,-460.0,0.00021202,2]
[378220314,1754793032771,-469.70245205,0.00021202,2]
[378220317,1754793032781,-460.0,0.00021202,2]
[378220319,1754793032791,-464.96547317,0.00021202,2]
[378220321,1754793032800,-460.0,0.00021202,2]
[378220323,1754793032810,-544.77268038,0.00021202,2]
[378220325,1754793032819,-460.0,0.00021202,2]
[378220327,1754793032828,-460.0,0.00021202,2]
[378220329,1754793032837,-524.79020067,0.00021202,2]
[378220331,1754793032846,-466.30509657,0.00021202,2]
[378220333,1754793032855,-460.0,0.00021202,2]
[378220335,1754793032864,-460.0,0.00021202,2]
[378220337,1754793032873,-464.2953037,0.00021474,2]
[378220339,1754793032882,-448.39374691,0.00021474,2]
[378220341,1754793032891,-460.0,0.00021474,2]
[378220343,1754793032901,-460.0,0.00021474,2]
[378220345,1754793032910,-492.57222085,0.00021474,2]
[378220346,1754793032921,-485.49371634,0.00021474,2]